fUSD/lending_fUSD_20251031
["ID","MTS","AMOUNT","RATE_DAILY","PERIOD"]
[392740195,1761900213076,-1216.09,0.00031506,120]
[392740196,1761900213111,-500.0,0.00031506,120]
[392740197,1761900213146,-500.0,0.00031506,120]
[392740198,1761900213183,-500.0,0.00031506,120]
[392740199,1761900213215,-500.0,0.00031506,120]
[392740200,1761900213248,-531.7058612,0.00031506,120]
[392740201,1761900213280,-500.0,0.00031506,120]
[392740202,1761900213313,-234.01745318,0.00031506,120]
[392740203,1761900213344,-500.0,0.00031506,120]
[392740204,1761900213376,-500.0,0.00031506,120]
[392740205,1761900213407,-643.14820531,0.00031506,120]
[392740206,1761900213438,-500.0,0.00031506,120]
[392740207,1761900213470,-500.0,0.00031506,120]
[392740208,1761900213501,-500.0,0.00031506,120]
[392740209,1761900213533,-500.0,0.00031506,120]
[392740210,1761900213564,-500.0,0.00031506,120]
[392740211,1761900213593,-500.0,0.00031506,120]
[392740212,1761900213624,-500.0,0.00031506,120]
[392740213,1761900213654,-491.96321698,0.00031506,120]
[392740214,1761900213685,-623.88139451,0.00031506,120]
[392740215,1761900213720,-505.25277165,0.00031506,120]
[392740216,1761900213759,-500.0,0.00031506,120]
[392740217,1761900213791,-500.0,0.00031506,120]
[392740218,1761900213822,-500.0,0.00031506,120]
[392740219,1761900213852,-518.85086047,0.00031506,120]
[392740220,1761900213883,-500.0,0.00031506,120]
[392740221,1761900213917,-500.0,0.00031506,120]
[392740222,1761900213950,-1377.57,0.00031506,120]
[392740223,1761900213980,-500.0,0.00031506,120]
[392740224,1761900214009,-503.19,0.00031506,120]
[392740225,1761900214038,-504.0010961,0.00031506,120]
[392740226,1761900214068,-500.0,0.00031506,120]
[392740227,1761900214097,-500.0,0.00031506,120]
[392740228,1761900214126,-500.0,0.00031506,120]
[392740229,1761900214158,-500.0,0.00031506,120]
[392740230,1761900214189,-225.98362042,0.00031506,120]
[392740231,1761900214217,-500.0,0.00031506,120]
[392740232,1761900214252,-500.0,0.00031506,120]
[392740233,1761900214287,-500.0,0.00031506,120]
[392740234,1761900214322,-227.43591564,0.00031506,120]
[392740235,1761900214357,-527.79401577,0.00031506,120]
[392740236,1761900214387,-500.0,0.00031506,120]
[392740237,1761900214417,-500.0,0.00031506,120]
[392740238,1761900214447,-500.0,0.00031506,120]
[392740239,1761900214477,-500.0,0.00031506,120]
[392740240,1761900214506,-500.0,0.00031506,120]
[392740241,1761900214541,-500.0,0.00031506,120]
[392740242,1761900214573,-252.0017929,0.00031506,120]
[392740243,1761900214602,-500.0,0.00031506,120]
[392740244,1761900214631,-500.0,0.00031506,120]
[392740245,1761900214661,-500.0,0.00031506,120]
[392740246,1761900214690,-500.0,0.00031506,120]
[392740247,1761900214722,-500.0,0.00031506,120]
[392740248,1761900214753,-1072.97,0.00031506,120]
[392740249,1761900214783,-528.65798629,0.00031506,120]
[392740250,1761900214816,-500.0,0.00031506,120]
[392740251,1761900214846,-500.0,0.00031506,120]
[392740252,1761900214875,-500.0,0.00031506,120]
[392740253,1761900214905,-500.0,0.00031506,120]
[392740254,1761900214934,-583.8,0.00031506,120]
[392740255,1761900214964,-296.19238333,0.00031506,120]
[392740256,1761900214994,-500.0,0.00031506,120]
[392740257,1761900215024,-500.0,0.00031506,120]
[392740258,1761900215054,-500.0,0.00031506,120]
[392740259,1761900215084,-500.0,0.00031506,120]
[392740260,1761900215114,-500.0,0.00031506,120]
[392740261,1761900215143,-500.0,0.00031506,120]
[392740262,1761900215305,-500.0,0.00031506,120]
[392740263,1761900215343,-500.0,0.00031506,120]
[392740264,1761900215377,-500.0,0.00031506,120]
[392740265,1761900215407,-500.0,0.00031506,120]
[392740266,1761900215438,-444.03123631,0.00031506,120]
[392740267,1761900215468,-500.0,0.00031506,120]
[392740268,1761900215500,-962.74,0.00031506,120]
[392740269,1761900215534,-500.0,0.00031506,120]
[392740270,1761900215563,-500.06215792,0.00031506,120]
[392740271,1761900215592,-500.0,0.00031506,120]
[392740272,1761900215621,-500.0,0.00031506,120]
[392740273,1761900215649,-396.25554145,0.00031506,120]
[392740274,1761900215678,-500.0,0.00031506,120]
[392740275,1761900215708,-500.0,0.00031506,120]
[392740276,1761900215738,-500.0,0.00031506,120]
[392740277,1761900215767,-500.0,0.00031506,120]
[392740278,1761900215798,-500.0,0.00031506,120]
[392740279,1761900215830,-500.0,0.00031506,120]
[392740280,1761900215860,-500.0,0.00031506,120]
[392740281,1761900215889,-500.0,0.00031506,120]
[392740282,1761900215920,-500.0,0.00031506,120]
[392740283,1761900215949,-500.0,0.00031506,120]
[392740284,1761900215978,-604.11,0.00031506,120]
[392740285,1761900216008,-500.0,0.00031506,120]
[392740286,1761900216037,-225.75221887,0.00031506,120]
[392740287,1761900216066,-500.0,0.00031506,120]
[392740288,1761900216095,-500.0,0.00031506,120]
[392740289,1761900216125,-500.0,0.00031506,120]
[392740290,1761900216155,-500.0,0.00031506,120]
[392740291,1761900216184,-458.000606,0.00031506,120]
[392740292,1761900216212,-698.78,0.00031506,120]
[392740293,1761900216242,-500.0,0.00031506,120]
[392740294,1761900216275,-678.24,0.00031506,120]
[392740295,1761900216307,-500.0,0.00031506,120]
[392740296,1761900216339,-500.0,0.00031506,120]
[392740297,1761900216369,-500.0,0.00031506,120]
[392740298,1761900216399,-500.0,0.00031506,120]
[392740299,1761900216428,-1037.19,0.00031506,120]
[392740300,1761900216458,-500.0,0.00031506,120]
[392740301,1761900216490,-500.0,0.00031506,120]
[392740302,1761900216521,-542.38411638,0.00031506,120]
[392740303,1761900216555,-500.0,0.00031506,120]
[392740304,1761900216585,-500.0,0.00031506,120]
[392740305,1761900216615,-500.0,0.00031506,120]
[392740306,1761900216643,-500.0,0.00031506,120]
[392740307,1761900216672,-500.0,0.00031506,120]
[392740308,1761900216701,-500.0,0.00031506,120]
[392740309,1761900216731,-500.0,0.00031506,120]
[392740310,1761900216760,-500.0,0.00031506,120]
[392740311,1761900216790,-500.0,0.00031506,120]
[392740312,1761900216821,-500.0,0.00031506,120]
[392740313,1761900216851,-500.0,0.00031506,120]
[392740314,1761900216880,-537.4317266,0.00031506,120]
[392740315,1761900216910,-851.18,0.00031506,120]
[392740316,1761900216940,-500.0,0.00031506,120]
[392740317,1761900216969,-500.0,0.00031506,120]
[392740318,1761900216998,-509.58935421,0.00031506,120]
[392740319,1761900217030,-500.0,0.00031506,120]
[392740320,1761900217060,-500.0,0.00031506,120]
[392740321,1761900217092,-500.0,0.00031506,120]
[392740322,1761900217124,-281.60277733,0.00031506,120]
[392740323,1761900217155,-500.0,0.00031506,120]
[392740324,1761900217186,-500.0,0.00031506,120]
[392740325,1761900217217,-500.0,0.00031506,120]
[392740326,1761900217251,-500.0,0.00031506,120]
[392740327,1761900217284,-500.0,0.00031506,120]
[392740328,1761900217319,-500.0,0.00031506,120]
[392740329,1761900217351,-500.0,0.00031506,120]
[392740330,1761900217384,-500.0,0.00031506,120]
[392740331,1761900217417,-500.0,0.00031506,120]
[392740332,1761900217448,-478.11673741,0.00031506,120]
[392740333,1761900217479,-555.26,0.00031506,120]
[392740334,1761900217510,-500.0,0.00031506,120]
[392740335,1761900217541,-516.18542342,0.00031506,120]
[392740336,1761900217573,-500.0,0.00031506,120]
[392740337,1761900217605,-373.21,0.00031506,120]
[392740338,1761900217636,-500.0,0.00031506,120]
[392740339,1761900217668,-500.0,0.00031506,120]
[392740340,1761900217698,-500.0,0.00031506,120]
[392740341,1761900217730,-500.0,0.00031506,120]
[392740342,1761900217761,-500.0,0.00031506,120]
[392740343,1761900217793,-500.0,0.00031506,120]
[392740344,1761900217825,-500.0,0.00031506,120]
[392740345,1761900217856,-552.6193234,0.00031506,120]
[392740346,1761900217887,-666.8,0.00031506,120]
[392740347,1761900217919,-545.74,0.00031506,120]
[392740348,1761900217950,-981.53,0.00031506,120]
[392740349,1761900217981,-500.0,0.00031506,120]
[392740350,1761900218012,-500.0,0.00031506,120]
[392740351,1761900218328,-500.0,0.00031506,120]
[392740352,1761900218361,-582.15244928,0.00031506,120]
[392740353,1761900218392,-500.0,0.00031506,120]
[392740354,1761900218425,-1835.75,0.00031506,120]
[392740355,1761900218459,-500.0,0.00031506,120]
[392740356,1761900218492,-519.71,0.00031506,120]
[392740357,1761900218524,-500.0,0.00031506,120]
[392740358,1761900218557,-500.0,0.00031506,120]
[392740359,1761900218588,-500.0,0.00031506,120]
[392740360,1761900218619,-500.0,0.00031506,120]
[392740361,1761900218649,-500.0,0.00031506,120]
[392740362,1761900218679,-500.0,0.00031506,120]
[392740363,1761900218712,-500.0,0.00031506,120]
[392740364,1761900218747,-500.0,0.00031506,120]
[392740365,1761900218783,-500.0,0.00031506,120]
[392740366,1761900218819,-159.86809822,0.00031506,120]
[392740367,1761900218852,-500.0,0.00031506,120]
[392740368,1761900218883,-809.87,0.00031506,120]
[392740369,1761900218916,-500.0,0.00031506,120]
[392740370,1761900218947,-500.0,0.00031506,120]
[392740371,1761900218979,-236.58857731,0.00031506,120]
[392740372,1761900219010,-500.0,0.00031506,120]
[392740373,1761900219041,-500.0,0.00031506,120]
[392740374,1761900219075,-500.0,0.00031506,120]
[392740375,1761900219110,-504.67,0.00031506,120]
[392740376,1761900219142,-500.0,0.00031506,120]
[392740377,1761900219173,-500.0,0.00031506,120]
[392740378,1761900219204,-500.0,0.00031506,120]
[392740379,1761900219235,-500.0,0.00031506,120]
[392740380,1761900219266,-500.0,0.00031506,120]
[392740381,1761900219299,-571.48043228,0.00031506,120]
[392740382,1761900219331,-500.0,0.00031506,120]
[392740383,1761900219363,-500.0,0.00031506,120]
[392740384,1761900219395,-500.0,0.00031506,120]
[392740385,1761900219424,-500.0,0.00031506,120]
[392740386,1761900219454,-500.0,0.00031506,120]
[392740387,1761900219484,-500.0,0.00031506,120]
[392740388,1761900219514,-881.27,0.00031506,120]
[392740389,1761900219549,-686.64,0.00031506,120]
[392740390,1761900219581,-785.07,0.00031506,120]
[392740391,1761900219610,-500.0,0.00031506,120]
[392740392,1761900219638,-676.61,0.00031506,120]
[392740393,1761900219667,-500.0,0.00031506,120]
[392740394,1761900219697,-2040.66,0.00031506,120]
[392740395,1761900219727,-500.0,0.00031506,120]
[392740396,1761900219756,-601.3,0.00031506,120]
[392740397,1761900219786,-500.0,0.00031506,120]
[392740398,1761900219815,-695.91,0.00031506,120]
[392740399,1761900219845,-500.0,0.00031506,120]
[392740400,1761900219874,-516.53813697,0.00031506,120]
[392740401,1761900219903,-796.03,0.00031506,120]
[392740402,1761900219933,-500.0,0.00031506,120]
[392740403,1761900219962,-500.0,0.00031506,120]
[392740404,1761900219991,-1520.1,0.00031506,120]
[392740405,1761900220020,-500.0,0.00031506,120]
[392740406,1761900220050,-500.0,0.00031506,120]
[392740407,1761900220080,-500.0,0.00031506,120]
[392740408,1761900220114,-500.0,0.00031506,120]
[392740409,1761900220146,-500.0,0.00031506,120]
[392740410,1761900220176,-650.56,0.00031506,120]
[392740411,1761900220206,-500.0,0.00031506,120]
[392740412,1761900220236,-500.0,0.00031506,120]
[392740413,1761900220266,-500.0,0.00031506,120]
[392740414,1761900220297,-500.0,0.00031506,120]
[392740415,1761900220327,-500.0,0.00031506,120]
[392740416,1761900220361,-1111.66,0.00031506,120]
[392740417,1761900220391,-500.0,0.00031506,120]
[392740418,1761900220421,-828.54,0.00031506,120]
[392740419,1761900220451,-500.0,0.00031506,120]
[392740420,1761900220480,-500.0,0.00031506,120]
[392740421,1761900220509,-500.0,0.00031506,120]
[392740422,1761900220616,-500.0,0.00031506,120]
[392740423,1761900220648,-500.0,0.00031506,120]
[392740424,1761900220678,-767.45,0.00031506,120]
[392740425,1761900220707,-500.0,0.00031506,120]
[392740426,1761900220736,-500.0,0.00031506,120]
[392740427,1761900220765,-512.46087605,0.00031506,120]
[392740428,1761900220796,-500.0,0.00031506,120]
[392740429,1761900220825,-772.47,0.00031506,120]
[392740430,1761900220855,-500.0,0.00031506,120]
[392740431,1761900220884,-500.0,0.00031506,120]
[392740432,1761900220914,-500.0,0.00031506,120]
[392740433,1761900220944,-500.0,0.00031506,120]
[392740434,1761900220974,-500.0,0.00031506,120]
[392740435,1761900221002,-230.68927634,0.00031506,120]
[392740436,1761900221031,-500.0,0.00031506,120]
[392740437,1761900221060,-355.69109125,0.00031506,120]
[392740438,1761900221089,-609.39,0.00031506,120]
[392740440,1761900221117,-520.76080731,0.00031506,120]
[392740442,1761900221146,-500.0,0.00031506,120]
[392740444,1761900221176,-500.0,0.00031506,120]
[392740446,1761900221205,-500.0,0.00031506,120]
[392740448,1761900221235,-638.02780336,0.00031506,120]
[392740451,1761900221264,-500.0,0.00031506,120]
[392740453,1761900221294,-500.0,0.00031506,120]
[392740455,1761900221323,-500.0,0.00031506,120]
[392740457,1761900221353,-500.0,0.00031506,120]
[392740459,1761900221383,-500.0,0.00031506,120]
[392740461,1761900221413,-750.72,0.00031506,120]
[392740463,1761900221442,-500.0,0.00031506,120]
[392740465,1761900221471,-500.0,0.00031506,120]
[392740467,1761900221501,-500.0,0.00031506,120]
[392740469,1761900221533,-1076.83,0.00031506,120]
[392740471,1761900221561,-500.0,0.00031506,120]
[392740473,1761900221591,-500.0,0.00031506,120]
[392740475,1761900221621,-559.27887625,0.00031506,120]
[392740477,1761900221650,-543.49755619,0.00031506,120]
[392740479,1761900221679,-500.0,0.00031506,120]
[392740481,1761900221709,-500.0,0.00031506,120]
[392740483,1761900221738,-500.0,0.00031506,120]
[392740485,1761900221767,-865.57,0.00031506,120]
[392740487,1761900221797,-500.0,0.00031506,120]
[392740488,1761900221827,-500.0,0.00031506,120]
[392740489,1761900221858,-500.0,0.00031506,120]
[392740490,1761900221888,-500.0,0.00031506,120]
[392740491,1761900221917,-500.0,0.00031506,120]
[392740492,1761900221948,-500.0,0.00031506,120]
[392740493,1761900221979,-500.0,0.00031506,120]
[392740494,1761900222010,-500.0,0.00031506,120]
[392740495,1761900222042,-500.0,0.00031506,120]
[392740496,1761900222072,-253.92976803,0.00031506,120]
[392740497,1761900222102,-859.2,0.00031506,120]
[392740498,1761900222133,-1208.78,0.00031506,120]
[392740499,1761900222163,-500.0,0.00031506,120]
[392740500,1761900222193,-500.0,0.00031506,120]
[392740501,1761900222222,-500.0,0.00031506,120]
[392740502,1761900222254,-328.70307104,0.00031506,120]
[392740503,1761900222284,-596.73,0.00031506,120]
[392740504,1761900222313,-500.0,0.00031506,120]
[392740505,1761900222343,-500.0,0.00031506,120]
[392740506,1761900222381,-500.0,0.00031506,120]
[392740507,1761900222410,-708.62,0.00031506,120]
[392740508,1761900222441,-174.78973403,0.00031506,120]
[392740509,1761900222473,-874.14,0.00031506,120]
[392740510,1761900222503,-500.0,0.00031506,120]
[392740511,1761900222534,-652.19,0.00031506,120]
[392740512,1761900222564,-503.76565299,0.00031506,120]
[392740513,1761900222593,-500.0,0.00031506,120]
[392740514,1761900222624,-759.56,0.00031506,120]
[392740515,1761900222655,-632.45,0.00031506,120]
[392740516,1761900222687,-500.0,0.00031506,120]
[392740517,1761900222717,-500.0,0.00031506,120]
[392740518,1761900222746,-500.0,0.00031506,120]
[392740519,1761900222777,-500.0,0.00031506,120]
[392740520,1761900222807,-297.94251074,0.00031506,120]
[392740521,1761900222836,-500.0,0.00031506,120]
[392740522,1761900222867,-500.0,0.00031506,120]
[392740523,1761900222897,-500.0,0.00031506,120]
[392740524,1761900222928,-500.0,0.00031506,120]
[392740525,1761900222958,-500.0,0.00031506,120]
[392740526,1761900222990,-599.00663731,0.00031506,120]
[392740527,1761900223020,-500.0,0.00031506,120]
[392740528,1761900223051,-500.0,0.00031506,120]
[392740529,1761900223083,-500.0,0.00031506,120]
[392740530,1761900223113,-526.45259849,0.00031506,120]
[392740531,1761900223144,-500.0,0.00031506,120]
[392740532,1761900223173,-500.0,0.00031506,120]
[392740533,1761900223202,-500.0,0.00031506,120]
[392740534,1761900223233,-500.0,0.00031506,120]
[392740535,1761900223266,-500.0,0.00031506,120]
[392740536,1761900223299,-689.02,0.00031506,120]
[392740537,1761900223330,-500.0,0.00031506,120]
[392740538,1761900223363,-500.0,0.00031506,120]
[392740539,1761900223396,-500.0,0.00031506,120]
[392740540,1761900223429,-500.0,0.00031506,120]
[392740541,1761900223460,-1869.3,0.00031506,120]
[392740542,1761900223494,-500.0,0.00031506,120]
[392740543,1761900223532,-500.0,0.00031506,120]
[392740544,1761900223563,-500.0,0.00031506,120]
[392740545,1761900223596,-533.35454349,0.00031506,120]
[392740546,1761900223631,-791.83,0.00031506,120]
[392740547,1761900223663,-500.0,0.00031506,120]
[392740548,1761900223694,-500.0,0.00031506,120]
[392740549,1761900223727,-500.0,0.00031506,120]
[392740550,1761900223757,-503.61719035,0.00031506,120]
[392740551,1761900223904,-153.49290352,0.00031506,120]
[392740552,1761900223945,-500.0,0.00031506,120]
[392740553,1761900223978,-500.0,0.00031506,120]
[392740554,1761900224008,-500.0,0.00031506,120]
[392740555,1761900224040,-642.14,0.00031506,120]
[392740556,1761900224069,-500.0,0.00031506,120]
[392740557,1761900224099,-500.0,0.00031506,120]
[392740558,1761900224133,-500.0,0.00031506,120]
[392740559,1761900224163,-856.21,0.00031506,120]
[392740560,1761900224193,-626.89899637,0.00031506,120]
[392740561,1761900224222,-708.41,0.00031506,120]
[392740562,1761900224254,-268.55770011,0.00031506,120]
[392740563,1761900224286,-591.93,0.00031506,120]
[392740564,1761900224318,-500.0,0.00031506,120]
[392740565,1761900224349,-500.0,0.00031506,120]
[392740566,1761900224379,-500.0,0.00031506,120]
[392740567,1761900224409,-343.677147,0.00031506,120]
[392740568,1761900224442,-500.0,0.00031506,120]
[392740569,1761900224472,-500.0,0.00031506,120]
[392740570,1761900224505,-500.0,0.00031506,120]
[392740571,1761900224537,-500.0,0.00031506,120]
[392740572,1761900224568,-667.8,0.00031506,120]
[392740573,1761900224599,-500.0,0.00031506,120]
[392740574,1761900224633,-500.0,0.00031506,120]
[392740575,1761900224665,-500.0,0.00031506,120]
[392740576,1761900224700,-500.0,0.00031506,120]
[392740577,1761900224732,-723.66,0.00031506,120]
[392740578,1761900224765,-500.0,0.00031506,120]
[392740579,1761900224800,-500.0,0.00031506,120]
[392740580,1761900224834,-500.0,0.00031506,120]
[392740581,1761900224869,-500.0,0.00031506,120]
[392740582,1761900224902,-500.0,0.00031506,120]
[392740583,1761900224935,-500.0,0.00031506,120]
[392740584,1761900224967,-772.2,0.00031506,120]
[392740585,1761900224998,-500.0,0.00031506,120]
[392740586,1761900225030,-500.0,0.00031506,120]
[392740587,1761900225062,-500.0,0.00031506,120]
[392740588,1761900225095,-434.41223733,0.00031506,120]
[392740589,1761900225130,-500.0,0.00031506,120]
[392740590,1761900225166,-500.0,0.00031506,120]
[392740591,1761900225203,-500.0,0.00031506,120]
[392740592,1761900225240,-725.71,0.00031506,120]
[392740593,1761900225273,-500.0,0.00031506,120]
[392740594,1761900225853,500.0,0.00031506,120]
[392740595,1761900225907,519.45515435,0.00031232,120]
[392740596,1761900225969,500.0,0.00031506,120]
[392740597,1761900226005,500.0,0.00031506,120]
[392740598,1761900226040,500.0,0.00031232,120]
[392740599,1761900226134,500.0,0.00031506,120]
[392740600,1761900227474,500.0,0.00031232,120]
[392740601,1761900227532,597.88,0.00031506,120]
[392740602,1761900228733,500.0,0.00031232,120]
[392740604,1761900229977,500.0,0.00031232,120]
[392740608,1761900230041,500.0,0.00031506,120]
[392740611,1761900230144,500.0,0.00031232,120]
[392740612,1761900230217,500.0,0.00031506,120]
[392740613,1761900230351,500.0,0.00031232,120]
[392740614,1761900230395,500.0,0.00031506,120]
[392740615,1761900230971,637.70871529,0.00031232,120]
[392740616,1761900231291,1500.0,0.00014035,2]
[392740617,1761900231910,500.0,0.00031232,120]
[392740618,1761900232008,500.0,0.00031506,120]
[392740619,1761900232232,500.0,0.00031232,120]
[392740620,1761900232281,500.0,0.00031506,120]
[392740621,1761900232329,500.0,0.00031232,120]
[392740622,1761900232463,500.0,0.00031506,120]
[392740623,1761900232581,500.0,0.00031232,120]
[392740624,1761900232627,500.0,0.00031506,120]
[392740625,1761900232674,500.0,0.00031232,120]
[392740626,1761900232821,500.0,0.00031506,120]
[392740627,1761900235177,500.0,0.00031232,120]
[392740628,1761900235217,514.72269689,0.00031506,120]
[392740630,1761900236377,500.0,0.00031232,120]
[392740631,1761900237549,500.0,0.00031232,120]
[392740632,1761900237642,500.0,0.00031506,120]
[392740633,1761900238291,520.74871273,0.00031232,120]
[392740634,1761900238719,500.0,0.00031232,120]
[392740635,1761900238818,500.0,0.00031506,120]
[392740636,1761900239007,500.0,0.00031232,120]
[392740637,1761900239048,500.0,0.00031506,120]
[392740638,1761900240409,500.0,0.00031232,120]
[392740639,1761900240658,500.0,0.00031506,120]
[392740640,1761900240697,596.16,0.00031232,120]
[392740641,1761900240908,596.16,0.00031506,120]
[392740642,1761900241428,596.39,0.00031232,120]
[392740643,1761900241661,596.39,0.00031506,120]
[392740645,1761900243039,500.0,0.00031232,120]
[392740646,1761900243286,500.0,0.00031506,120]
[392740647,1761900243585,500.0,0.00031232,120]
[392740648,1761900243826,500.0,0.00031506,120]
[392740649,1761900244107,500.0,0.00031232,120]
[392740650,1761900244352,500.0,0.00031506,120]
[392740651,1761900244471,801.29,0.00031232,120]
[392740652,1761900244713,801.29,0.00031506,120]
[392740653,1761900245622,500.0,0.00031232,120]
[392740654,1761900245851,500.0,0.00031506,120]
[392740655,1761900247781,500.0,0.00031232,120]
[392740656,1761900248022,500.0,0.00031506,120]
[392740657,1761900248061,500.0,0.00031232,120]
[392740661,1761900248268,521.27128104,0.00031506,120]
[392740662,1761900249186,500.0,0.00031232,120]
[392740663,1761900249432,500.0,0.00031506,120]
[392740664,1761900249499,1713.53,0.00031232,120]
[392740665,1761900249740,1713.53,0.00031506,120]
[392740666,1761900250449,500.0,0.00031232,120]
[392740667,1761900253144,500.0,0.00031232,120]
[392740668,1761900253378,500.0,0.00031506,120]
[392740669,1761900253416,500.0,0.00031232,120]
[392740670,1761900253484,500.0,0.00031232,120]
[392740671,1761900253652,500.0,0.00031506,120]
[392740672,1761900253726,500.0,0.00031506,120]
[392740673,1761900254760,500.0,0.00031232,120]
[392740674,1761900254988,500.0,0.00031506,120]
[392740675,1761900256860,500.0,0.00031506,120]
[392740677,1761900257892,500.0,0.00031232,120]
[392740678,1761900258126,500.0,0.00031506,120]
[392740679,1761900258498,500.0,0.00031232,120]
[392740680,1761900258725,500.0,0.00031506,120]
[392740681,1761900258968,500.0,0.00031232,120]
[392740682,1761900259140,500.0,0.00031232,120]
[392740683,1761900259216,500.0,0.00031506,120]
[392740684,1761900259253,340.45537589,0.00031232,120]
[392740685,1761900259307,504.17338256,0.00031232,120]
[392740686,1761900259392,500.0,0.00031506,120]
[392740687,1761900259718,500.0,0.00031232,120]
[392740688,1761900259966,188.54166787,0.00031506,120]
[392740689,1761900260100,546.82219847,0.00031232,120]
[392740690,1761900260191,500.0,0.00031232,120]
[392740691,1761900260433,500.0,0.00031506,120]
[392740692,1761900261578,500.0,0.00031232,120]
[392740693,1761900261631,500.0,0.00031232,120]
[392740694,1761900261764,593.8906231,0.00031506,120]
[392740695,1761900261885,500.0,0.00031506,120]
[392740696,1761900261977,708.1,0.00031232,120]
[392740697,1761900262067,526.30946556,0.00031232,120]
[392740698,1761900262222,708.1,0.00031506,120]
[392740699,1761900262879,784.01,0.00031232,120]
[392740700,1761900263035,700.35,0.00031232,120]
[392740701,1761900263112,784.01,0.00031506,120]
[392740702,1761900263279,700.35,0.00031506,120]
[392740703,1761900263322,500.0,0.00031232,120]
[392740704,1761900263547,500.0,0.00031506,120]
[392740705,1761900265098,500.0,0.00031232,120]
[392740706,1761900265321,468.60031714,0.00031506,120]
[392740707,1761900265384,500.0,0.00031232,120]
[392740708,1761900265568,500.0,0.00031232,120]
[392740709,1761900265625,500.0,0.00031506,120]
[392740710,1761900265715,500.0,0.00031232,120]
[392740711,1761900265921,500.0,0.00031232,120]
[392740712,1761900265965,500.0,0.00031506,120]
[392740713,1761900266155,500.0,0.00031506,120]
[392740714,1761900266207,500.0,0.00031506,120]
[392740716,1761900266782,500.0,0.00031232,120]
[392740717,1761900267272,530.09050679,0.00031232,120]
[392740718,1761900268713,719.65,0.00031232,120]
[392740719,1761900268804,719.65,0.00031506,120]
[392740720,1761900269316,300.0,0.00031232,120]
[392740721,1761900269548,300.0,0.00031506,120]
[392740722,1761900270183,1682.77,0.00031232,120]
[392740723,1761900270442,1682.77,0.00031506,120]
[392740724,1761900270507,588.37,0.00031232,120]
[392740725,1761900270700,588.37,0.00031506,120]
[392740726,1761900271508,500.0,0.00031232,120]
[392740727,1761900271586,545.5430648,0.00031232,120]
[392740728,1761900271742,500.0,0.00031506,120]
[392740729,1761900272564,500.0,0.00031232,120]
[392740730,1761900272843,500.0,0.00031506,120]
[392740731,1761900273357,784.85,0.00031232,120]
[392740732,1761900273420,500.0,0.00031232,120]